bitfinex-derivatives/quotes_SOLF0:USTF0_20260220
["timestamp","ask_amount","ask_price","bid_price","bid_amount"]
[1771599063795,5.97935805,82.97,82.895,4.45599876]
[1771599064298,10.853,82.951,82.895,4.45599876]
[1771599064498,18.07550043,83.01,82.921,4.53858287]
[1771599065204,10.8479,82.99,82.923,4.53858287]
[1771599065396,18.07550043,83.01,82.923,4.53858287]
[1771599066002,10.8488,82.983,82.925,4.53858287]
[1771599066393,10.8479,82.99,82.925,4.53858287]
[1771599066598,5.97935805,83.01,82.925,4.53858287]
[1771599067093,5.97935805,83.01,82.927,4.58064637]
[1771599067801,5.97935805,83.01,82.931,4.58050445]
[1771599068300,10.8504,82.971,82.931,4.58050445]
[1771599068801,21.6909,83.009,82.931,4.58050445]
[1771599069099,5.97935805,83.01,82.931,4.58050445]
[1771599069401,5.97935805,82.99,82.901,4.5801161]
[1771599069602,5.97935805,82.99,82.909,4.5801161]
[1771599070202,5.97935805,83.01,82.927,4.5801161]
[1771599071097,5.97935805,83.01,82.936,4.58002127]
[1771599071301,5.97935805,83.03,82.941,4.58002127]
[1771599072002,5.97935805,83.03,82.956,4.58002127]
[1771599072197,17.83286641,83.03,82.956,4.58002127]
[1771599072606,5.97935805,83.01,82.956,4.58002127]
[1771599073100,16.82475805,83.01,82.956,4.58002127]
[1771599073301,10.8454,83.01,82.956,4.58002127]
[1771599073703,10.8463,83.002,82.932,4.58670912]
[1771599074805,10.8463,83.002,82.936,4.59653542]
[1771599075101,10.8474,82.994,82.936,4.59653542]
[1771599075611,10.8474,82.994,82.92,5.97935805]
[1771599075612,10.8487,82.985,82.92,4.59653542]
[1771599076007,2.23237701,82.97,82.92,4.59653542]
[1771599076201,2.23237701,82.96,82.903,4.59676422]
[1771599076807,2.23237701,82.96,82.911,10.8582]
[1771599078002,36.25,83.003,82.903,4.59676422]
[1771599078003,2.23237701,82.95,82.903,4.59676422]
[1771599079205,2.23237701,82.94,82.903,4.59676422]
[1771599079410,2.23237701,82.95,82.905,4.59766321]
[1771599080008,2.23237701,82.95,82.89,13.09327701]
[1771599080009,2.23237701,82.93,82.871,4.59766321]
[1771599080207,2.23237701,82.92,82.871,4.59766321]
[1771599080402,2.23237701,82.91,82.871,4.59766321]
[1771599080605,14.833298,82.977,82.843,279.08450996]
[1771599080606,2.23237701,82.89,82.852,4.60488072]
[1771599081206,2.23237701,82.88,82.833,4.60488072]
[1771599081403,2.23237701,82.86,82.827,10.8691]
[1771599081607,2.23237701,82.87,82.827,10.8691]
[1771599081909,5.99204887,82.9,82.853,4.60488072]
[1771599082107,5.99204887,82.94,82.853,4.60488072]
[1771599082605,10.8546,82.939,82.875,4.57435229]
[1771599083215,5.99204887,82.94,82.88,10.8622]
[1771599083406,5.99204887,82.96,82.88,4.57435229]
[1771599084809,5.99204887,82.96,82.905,4.61484393]
[1771599085015,10.8508,82.969,82.905,4.61484393]
[1771599085716,10.8508,82.969,82.908,10.8586]
[1771599086113,10.8508,82.969,82.905,4.61484393]
[1771599086813,5.99204887,82.96,82.871,4.55877786]
[1771599087511,5.99204887,82.96,82.886,4.55877786]
[1771599087814,36.25,82.975,82.886,4.55877786]
[1771599088015,10.8519,82.96,82.887,15.42007786]
[1771599088211,5.99204887,82.96,82.887,4.55877786]
[1771599089706,5.99204887,82.96,82.889,4.55800917]
[1771599089914,36.25,82.97,82.889,4.55800917]
[1771599090115,5.99204887,82.96,82.889,4.55800917]
[1771599090910,36.25,82.979,82.891,4.55854833]
[1771599091113,5.99204887,82.98,82.891,4.55854833]
[1771599091513,5.99204887,82.98,82.905,4.55854833]
[1771599092418,5.99204887,82.98,82.89,5.99204887]
[1771599092419,5.99204887,82.98,82.908,4.57133758]
[1771599093016,10.8504,82.971,82.908,4.57133758]
[1771599093321,5.99204887,82.98,82.908,4.57133758]
[1771599093719,5.99204887,82.98,82.909,4.57133758]
[1771599094819,10.8504,82.971,82.909,4.57133758]
[1771599095221,10.8515,82.963,82.909,4.57133758]
[1771599095422,5.99204887,82.96,82.871,4.49052057]
[1771599096117,5.99204887,82.96,82.889,4.49052057]
[1771599096323,57.0,82.979,82.889,4.49052057]
[1771599096521,5.99204887,82.96,82.889,4.49052057]
[1771599098618,10.853,82.951,82.902,10.8594]
[1771599098821,5.99204887,82.96,82.889,4.49052057]
[1771599099422,10.852,82.959,82.89,4.47638269]
[1771599099926,10.8538,82.945,82.89,4.47638269]
[1771599100320,5.99204887,82.96,82.89,4.47638269]
[1771599100725,5.99204887,82.96,82.861,4.47602241]
[1771599100925,5.99204887,82.92,82.844,4.47602241]
[1771599101329,5.99204887,82.94,82.844,4.47602241]
[1771599101629,5.99204887,82.94,82.866,4.47602241]
[1771599102328,10.8547,82.938,82.883,4.47057321]
[1771599102523,5.99204887,82.94,82.883,4.47057321]
[1771599102921,10.8566,82.924,82.883,4.47057321]
[1771599103227,5.99204887,82.92,82.866,4.47057321]
[1771599103424,10.8585,82.909,82.866,4.47057321]
[1771599103618,5.99204887,82.92,82.866,4.47057321]
[1771599104217,5.99204887,82.94,82.866,4.47057321]
[1771599104622,10.8555,82.932,82.868,4.47033058]
[1771599104826,5.99204887,82.94,82.868,4.47033058]
[1771599105329,5.99204887,82.96,82.872,4.47033058]
[1771599106224,5.99204887,82.96,82.885,4.46821406]
[1771599107223,5.99204887,82.96,82.888,4.46821406]
[1771599107526,5.99204887,82.94,82.87,4.46821406]
[1771599108030,5.9881871,82.93,82.851,4.46821406]
[1771599108226,10.8589,82.906,82.859,10.865]
[1771599108440,5.9881871,82.93,82.86,4.46763892]
[1771599108727,10.8586,82.909,82.86,4.46763892]
[1771599110131,10.8594,82.902,82.86,4.46763892]
[1771599110741,10.8585,82.909,82.86,4.46763892]
[1771599110933,5.9881871,82.93,82.86,4.46763892]
[1771599112040,5.9881871,82.91,82.843,4.46526866]
[1771599112832,36.25,82.945,82.843,4.46526866]
[1771599112833,5.9881871,82.93,82.843,4.46526866]
[1771599113139,5.9881871,82.91,82.843,4.46526866]
[1771599113336,10.8643,82.865,82.83,31.31887357]
[1771599113538,10.8643,82.865,82.825,4.46209729]
[1771599113734,5.9881871,82.89,82.825,4.46209729]
[1771599113939,10.8624,82.88,82.827,4.46209729]
[1771599114439,10.8605,82.894,82.839,4.45470464]
[1771599114736,5.9881871,82.91,82.839,4.45470464]
[1771599114932,10.862,82.882,82.839,4.45470464]
[1771599115137,5.9881871,82.91,82.839,4.45470464]
[1771599115633,10.862,82.883,82.839,4.45470464]
[1771599115828,5.9881871,82.91,82.839,4.45470464]
[1771599116233,10.8642,82.866,82.839,4.45470464]
[1771599116539,5.9881871,82.88,82.815,4.46435615]
[1771599116937,10.8651,82.859,82.815,4.46435615]
[1771599117339,5.9881871,82.88,82.815,4.46435615]
[1771599118629,36.25,82.905,82.781,4.51972476]
[1771599118834,5.9881871,82.86,82.781,4.51972476]
[1771599119234,36.25,82.89,82.781,4.51972476]
[1771599119235,5.9881871,82.88,82.781,4.51972476]
[1771599119436,10.8638,82.869,82.807,4.51972476]
[1771599120734,10.8625,82.879,82.814,4.51818814]
[1771599120936,5.9881871,82.88,82.814,4.51818814]
[1771599121343,36.25,82.911,82.814,4.51818814]
[1771599121940,10.8614,82.887,82.829,10.8689]
[1771599122341,10.8603,82.896,82.837,4.54120375]
[1771599122644,36.25,82.932,82.837,4.54120375]
[1771599122845,10.8591,82.904,82.845,4.54120375]
[1771599123046,36.25,82.935,82.845,4.54120375]
[1771599123444,5.9881871,82.93,82.845,4.54120375]
[1771599123839,5.9881871,82.95,82.845,4.54120375]
[1771599124038,5.9881871,82.95,82.861,4.54120375]
[1771599124235,10.854,82.944,82.882,4.54462524]
[1771599124446,5.9881871,82.95,82.882,4.54462524]
[1771599125142,36.25,82.979,82.882,4.54462524]
[1771599125143,5.9881871,82.97,82.882,4.54462524]
[1771599125442,11.18134797,83.009,82.88,5.9881871]
[1771599125443,5.9881871,82.99,82.903,4.54462524]
[1771599126046,5.9881871,82.97,82.881,4.54462524]
[1771599126246,5.9881871,82.99,82.891,4.55848008]
[1771599126449,5.9881871,82.99,82.894,4.55848008]
[1771599126944,10.8521,82.958,82.895,10.8602]
[1771599127149,5.9881871,82.97,82.896,4.55848008]
[1771599127543,10.8534,82.948,82.896,4.55848008]
[1771599127737,5.9881871,82.97,82.896,4.55848008]
[1771599128141,10.8521,82.958,82.896,4.55848008]
[1771599128642,10.8536,82.946,82.896,4.55848008]
[1771599129248,10.8525,82.955,82.896,4.55848008]
[1771599129443,5.9881871,82.97,82.896,4.55848008]
[1771599130049,5.9881871,82.99,82.896,4.55848008]
[1771599130745,5.9881871,82.99,82.89,5.9881871]
[1771599130746,5.9881871,82.99,82.909,4.55809762]
[1771599131339,10.8498,82.976,82.92,10.857]
[1771599131539,5.9881871,82.99,82.921,4.55809762]
[1771599131947,10.8509,82.968,82.921,4.55809762]
[1771599132151,5.9881871,82.99,82.903,4.55809762]
[1771599132452,5.9881871,82.99,82.911,4.55744691]
[1771599132652,5.9881871,82.99,82.91,5.9881871]
[1771599132653,10.8482,82.988,82.929,4.55744691]
[1771599133046,10.8495,82.978,82.929,4.55744691]
[1771599134651,5.9881871,83.01,82.929,4.55744691]
[1771599135352,5.9881871,83.01,82.93,4.56377271]
[1771599135856,10.8495,82.978,82.93,4.56377271]
[1771599136551,5.9881871,83.01,82.93,4.56377271]
[1771599136854,5.9881871,82.99,82.93,4.56377271]
[1771599137255,5.9881871,82.99,82.913,4.56228703]
[1771599137457,5.9881871,83.01,82.913,4.56228703]
[1771599137748,5.9881871,83.01,82.91,5.9881871]
[1771599137749,10.8495,82.978,82.925,4.56228703]
[1771599138349,5.9881871,83.01,82.925,4.56228703]
[1771599138853,5.9881871,83.01,82.926,10.8561]
[1771599138854,10.8486,82.985,82.926,10.8561]
[1771599139153,10.8486,82.985,82.927,4.56334207]
[1771599139353,5.9881871,83.01,82.931,4.56334207]
[1771599140354,10.8484,82.986,82.937,4.57850551]
[1771599141156,10.8498,82.976,82.937,4.57850551]
[1771599141348,5.9881871,82.99,82.911,4.57850551]
[1771599141960,5.9881871,82.99,82.872,31.87497728]
[1771599141961,5.9881871,82.97,82.881,4.57850551]
[1771599143155,5.9881871,82.97,82.891,4.59405932]
[1771599143760,10.8545,82.94,82.891,4.59405932]
[1771599143961,5.9881871,82.97,82.891,4.59405932]
[1771599144765,5.9881871,82.97,82.892,4.58922455]
[1771599145363,5.9881871,82.99,82.912,4.58922455]
[1771599146162,10.8527,82.953,82.912,4.58922455]
[1771599146363,5.9881871,82.97,82.912,4.58922455]
[1771599146666,5.9881871,82.97,82.88,5.9881871]
[1771599146667,5.9881871,82.97,82.881,4.59103264]
[1771599146867,10.8536,82.946,82.894,4.59103264]
[1771599147062,5.9881871,82.97,82.894,4.59103264]
[1771599147260,5.9881871,82.9,82.791,4.59103264]
[1771599147461,5.9881871,82.86,82.791,4.59103264]
[1771599148765,10.8668,82.846,82.791,4.59103264]
[1771599148971,5.9881871,82.86,82.791,4.59103264]
[1771599149266,5.9881871,82.88,82.791,4.59103264]
[1771599150668,10.8639,82.868,82.803,4.4897606]
[1771599150870,5.9881871,82.86,82.803,4.4897606]
[1771599151162,168.9195,82.905,82.803,4.4897606]
[1771599151163,5.9881871,82.88,82.803,4.4897606]
[1771599151667,10.863,82.875,82.808,4.4897606]
[1771599152567,36.25,82.911,82.808,4.4897606]
[1771599152568,5.9881871,82.9,82.808,4.4897606]
[1771599152760,5.9881871,82.88,82.808,4.4897606]
[1771599153669,10.8626,82.878,82.81,10.8713]
[1771599153872,10.8626,82.878,82.811,4.48611315]
[1771599154267,5.9881871,82.92,82.765,36.25]
[1771599154268,3.60673088,82.859,82.765,36.25]
[1771599154462,3.60673088,82.859,82.77,5.9881871]
[1771599155066,10.8669,82.845,82.779,10.8754]
[1771599155467,10.8656,82.856,82.788,10.8743]
[1771599156375,10.8656,82.856,82.789,3.65124143]
[1771599157069,10.8656,82.856,82.792,3.65124143]
[1771599157274,3.60673088,82.859,82.792,3.65124143]
[1771599157473,3.61878282,82.878,82.803,4.04077804]
[1771599158176,5.9881871,82.86,82.803,4.04077804]
[1771599159374,5.9881871,82.86,82.806,4.04077804]
[1771599160276,5.9881871,82.86,82.78,62.0]
[1771599160277,5.9881871,82.86,82.795,4.04077804]
[1771599161773,5.9881871,82.86,82.804,10.8722]
[1771599162274,9.66455595,82.86,82.804,10.8722]
[1771599162873,3.67636885,82.859,82.795,14.91407804]
[1771599163179,3.67636885,82.859,82.796,4.04077804]
[1771599163766,3.67636885,82.859,82.812,10.8711]
[1771599163978,5.9881871,82.86,82.796,4.04077804]
[1771599164376,3.67636885,82.877,82.815,4.04077804]
[1771599165078,3.67636885,82.877,82.837,10.8678]
[1771599165274,3.67636885,82.877,82.815,4.04077804]
[1771599166281,3.67636885,82.877,82.82,10.8701]
[1771599167571,57.0,82.919,82.82,10.8701]
[1771599167572,5.9881871,82.86,82.82,10.8701]
[1771599167985,3.65890815,82.859,82.812,10.8712]
[1771599169981,5.99973142,82.85,82.812,10.8712]
[1771599170882,5.99973142,82.85,82.819,10.8702]
[1771599171881,3.67535819,82.849,82.811,10.8713]
[1771599172782,3.67535819,82.849,82.818,10.8703]
[1771599173178,5.99973142,82.85,82.798,4.04077804]
[1771599173380,3.67412216,82.867,82.82,10.8701]
[1771599174886,3.67412216,82.867,82.804,10.8722]
[1771599175484,3.67412216,82.867,82.804,14.91297804]
[1771599175678,3.62873547,82.865,82.804,14.91297804]
[1771599176688,10.8644,82.864,82.808,10.8716]
[1771599176989,10.8644,82.864,82.809,4.04077804]
[1771599177684,10.8644,82.864,82.81,10.8714]
[1771599178077,10.8644,82.864,82.811,4.04077804]
[1771599179092,10.8653,82.858,82.812,10.8711]
[1771599180191,14.49303547,82.865,82.82,10.87]
[1771599180591,3.62873547,82.865,82.781,4.04077804]
[1771599180795,5.99973142,82.87,82.828,10.869]
[1771599180990,5.99973142,82.87,82.828,14.90977804]
[1771599181392,3.64767363,82.869,82.813,10.871]
[1771599181695,3.64767363,82.869,82.812,4.04077804]
[1771599182791,3.61650596,82.849,82.784,4.04077804]
[1771599183095,3.61650596,82.866,82.784,4.04077804]
[1771599183296,5.99973142,82.87,82.81,4.04077804]
[1771599184001,10.8638,82.869,82.824,10.8695]
[1771599184391,5.99973142,82.89,82.81,4.04077804]
[1771599184596,3.71932481,82.889,82.832,4.04077804]
[1771599186095,10.8626,82.878,82.839,10.8676]
[1771599186303,3.71932481,82.889,82.832,4.04077804]
[1771599186594,10.8622,82.881,82.842,10.8672]
[1771599186794,3.7487931,82.879,82.801,3.83743047]
[1771599187393,3.74448558,82.906,82.83,3.70185187]
[1771599187597,3.74448558,82.889,82.83,3.70185187]
[1771599187898,10.8624,82.879,82.835,10.8682]
[1771599190087,3.74448558,82.889,82.835,3.70185187]
[1771599190287,5.99973142,82.89,82.835,3.70185187]
[1771599190491,3.74033254,82.906,82.835,3.70185187]
[1771599190688,3.74033254,82.906,82.82,5.99973142]
[1771599190689,5.99973142,82.91,82.866,10.8641]
[1771599191090,9.74006396,82.91,82.866,10.8641]
[1771599191293,3.74033254,82.909,82.866,10.8641]
[1771599191488,3.74033254,82.925,82.861,3.70185187]
[1771599191695,8.855272,82.933,82.861,3.70185187]
[1771599191994,5.99973142,82.95,82.901,10.8595]
[1771599192401,5.99973142,82.95,82.902,3.70185187]
[1771599192899,3.74033254,82.959,82.902,3.70185187]
[1771599193294,3.74033254,82.959,82.907,10.8587]
[1771599193493,3.74033254,82.959,82.907,14.56055187]
[1771599193698,5.99973142,82.97,82.86,5.99973142]
[1771599193699,3.72583419,82.939,82.887,3.70185187]
[1771599193898,3.72583419,82.939,82.861,3.70185187]
[1771599194202,3.72583419,82.939,82.878,10.8625]
[1771599194501,3.72583419,82.939,82.877,3.70185187]
[1771599195698,3.72583419,82.939,82.887,10.8613]
[1771599195895,3.78487563,82.956,82.877,3.70185187]
[1771599196401,3.79718357,82.969,82.899,3.70185187]
[1771599197004,9.79691499,82.95,82.882,3.70185187]
[1771599197193,3.79718357,82.95,82.9,10.8596]
[1771599197404,3.79718357,82.949,82.882,3.70185187]
[1771599198499,3.79718357,82.949,82.899,10.8597]
[1771599198701,3.79718357,82.949,82.882,3.70185187]
[1771599199100,3.75398065,82.969,82.912,3.70185187]
[1771599200502,3.72031994,82.986,82.912,3.70185187]
[1771599201103,3.72031994,82.984,82.912,3.70185187]
[1771599201507,3.72031994,83.0,82.912,3.70185187]
[1771599202802,10.8474,82.994,82.943,10.8539]
[1771599203203,3.72031994,83.0,82.934,3.70185187]
[1771599203909,3.72031994,83.0,82.95,10.853]
[1771599204107,3.72031994,83.0,82.951,3.70185187]
[1771599204312,5.99973142,83.01,82.951,3.70185187]
[1771599204511,3.62964144,83.009,82.951,3.70185187]
[1771599205300,3.62964144,83.004,82.924,3.70185187]
[1771599205608,3.62964144,82.989,82.924,3.70185187]
[1771599206005,10.8469,82.998,82.942,10.8541]
[1771599206402,14.47269571,82.998,82.942,10.8541]
[1771599206910,3.62579571,82.989,82.921,3.70185187]
[1771599207408,3.62579571,83.006,82.921,3.70185187]
[1771599207607,3.62579571,83.006,82.949,10.8531]
[1771599207908,3.62579571,83.004,82.949,10.8531]
[1771599208307,3.62579571,83.004,82.941,3.70185187]
[1771599208308,3.62579571,83.004,82.958,10.8521]
[1771599208513,5.99973142,83.01,82.958,10.8521]
[1771599208808,3.6484774,83.039,82.957,3.70185187]
[1771599209007,3.6484774,83.039,82.95,5.99973142]
[1771599209008,3.6484774,83.039,82.988,10.848]
[1771599209205,3.6484774,83.039,82.98,3.70185187]
[1771599209700,3.6484774,83.026,82.962,3.70185187]
[1771599210204,5.99973142,83.03,82.962,3.70185187]
[1771599210403,3.64673168,83.029,82.962,3.70185187]
[1771599210808,10.8437,83.023,82.962,3.70185187]
[1771599211010,3.64673168,83.029,82.962,3.70185187]
[1771599211407,14.49223168,83.008,82.954,10.8525]
[1771599211703,3.64673168,83.008,82.954,10.8525]
[1771599211910,10.8443,83.018,82.963,3.70185187]
[1771599212213,3.64673168,83.025,82.963,3.70185187]
[1771599212609,3.64673168,83.025,82.974,14.55175187]
[1771599212809,3.64673168,83.025,82.974,3.70185187]
[1771599213315,3.66131383,83.009,82.951,3.70185187]
[1771599214015,3.66131383,82.999,82.931,3.70185187]
[1771599214811,3.64734044,82.995,82.931,3.70185187]
[1771599215411,3.64734044,83.009,82.931,3.70185187]
[1771599216116,10.848,82.99,82.939,10.8545]
[1771599216317,3.64734044,82.993,82.931,3.70185187]
[1771599216705,10.8478,82.991,82.931,3.70185187]
[1771599217116,3.64734044,82.993,82.945,10.8537]
[1771599217506,3.64734044,82.993,82.931,3.70185187]
[1771599217711,3.62428549,83.009,82.931,3.70185187]
[1771599218415,3.62559957,82.989,82.911,3.79500338]
[1771599218810,3.62559957,82.989,82.928,3.79500338]
[1771599219317,10.8482,82.988,82.938,10.8546]
[1771599219516,3.62559957,82.989,82.928,3.79500338]
[1771599220717,10.8495,82.979,82.929,10.8557]
[1771599221518,10.8484,82.987,82.936,10.8549]
[1771599221719,3.62559957,82.989,82.937,3.79500338]
[1771599222316,10.8482,82.988,82.94,10.8543]
[1771599222620,10.8491,82.981,82.937,3.79500338]
[1771599223114,3.62559957,82.989,82.931,10.8555]
[1771599223316,3.62559957,82.989,82.921,3.79500338]
[1771599223517,3.62628248,82.979,82.921,3.79500338]
[1771599224019,3.62628248,82.959,82.899,3.79500338]
[1771599224620,3.60457158,82.937,82.874,3.79500338]
[1771599225926,3.60457158,82.919,82.851,3.79500338]
[1771599226724,3.55158117,82.917,82.862,10.8646]
[1771599227315,3.55158117,82.9,82.853,10.8658]
[1771599227917,3.55158117,82.9,82.86,10.8648]
[1771599228124,3.55158117,82.919,82.851,3.79500338]
[1771599229521,3.55403802,82.937,82.868,3.79500338]
[1771599229920,36.18,82.957,82.868,3.79500338]
[1771599229921,3.55403802,82.929,82.868,3.79500338]
[1771599230124,3.55403802,82.929,82.872,10.8632]
[1771599230918,10.8574,82.918,82.872,10.8632]
[1771599231124,3.50328066,82.917,82.872,10.8632]
[1771599231421,3.50328066,82.917,82.829,21.7378]
[1771599231422,3.50328066,82.917,82.861,10.8647]
[1771599231827,3.50328066,82.909,82.861,10.8647]
[1771599232022,3.50328066,82.906,82.82,5.98855444]
[1771599232332,3.50328066,82.906,82.821,3.79500338]
[1771599232523,5.98855444,82.91,82.833,10.8683]
[1771599232524,3.47020351,82.891,82.833,10.8683]
[1771599232725,3.47020351,82.889,82.821,3.79500338]
[1771599232931,3.47020351,82.889,82.743,169.2475]
[1771599232932,3.47020351,82.869,82.805,3.79500338]
[1771599233131,5.98855444,82.87,82.795,10.8734]
[1771599233132,3.47020351,82.855,82.795,10.8734]
[1771599233328,3.47020351,82.855,82.796,3.79500338]
[1771599233530,5.98855444,82.87,82.796,3.79500338]
[1771599233531,3.47020351,82.853,82.796,3.79500338]
[1771599234029,3.47020351,82.853,82.797,10.8732]
[1771599234829,9.44043535,82.85,82.796,3.79500338]
[1771599235028,3.45188091,82.849,82.796,3.79500338]
[1771599235225,3.45188091,82.849,82.781,3.79500338]
[1771599235931,3.45188091,82.849,82.796,10.8733]
[1771599236829,3.45188091,82.849,82.71,169.3157]
[1771599236830,3.47048967,82.847,82.761,3.79500338]
[1771599237931,3.47048967,82.847,82.798,10.8729]
[1771599239028,3.47048967,82.847,82.799,3.79500338]
[1771599239233,3.47087871,82.866,82.806,3.79500338]
[1771599239631,5.98855444,82.88,82.828,10.8691]
[1771599240437,3.47087871,82.884,82.832,10.8685]
[1771599241533,10.86,82.898,82.841,3.79500338]
[1771599242135,3.45958781,82.902,82.841,3.79500338]
[1771599242537,3.45958781,82.902,82.811,3.79500338]
[1771599242836,3.4733249,82.889,82.811,3.79500338]
[1771599243538,3.4733249,82.888,82.811,3.79500338]
[1771599244436,3.4746901,82.869,82.811,3.79500338]
[1771599244835,10.864,82.868,82.811,3.79500338]
[1771599245032,36.18,82.913,82.811,3.79500338]
[1771599245033,3.4746901,82.867,82.811,3.79500338]
[1771599245842,3.4746901,82.867,82.792,3.73041589]
[1771599246035,3.47758261,82.84,82.775,3.73041589]
[1771599246235,3.51778927,82.829,82.775,3.73041589]
[1771599246637,9.50634371,82.85,82.784,3.73041589]
[1771599247035,3.51778927,82.849,82.751,3.72641842]
[1771599247237,3.51964564,82.827,82.751,3.72641842]
[1771599247735,3.51964564,82.827,82.778,10.8757]
[1771599248036,3.51964564,82.827,82.77,3.72641842]
[1771599248244,14.38904564,82.827,82.77,3.72641842]
[1771599248445,3.45378852,82.819,82.751,3.72641842]
[1771599248634,3.45378852,82.819,82.769,10.8767]
[1771599249437,3.45378852,82.819,82.751,3.72641842]
[1771599249438,3.45378852,82.819,82.761,10.8779]
[1771599250030,3.45378852,82.802,82.733,3.72641842]
[1771599250238,3.45378852,82.789,82.733,3.72641842]
[1771599250641,5.98855444,82.81,82.742,3.72641842]
[1771599250840,3.42374812,82.826,82.742,3.72641842]
[1771599251036,3.42374812,82.826,82.751,3.72641842]
[1771599251233,10.8677,82.84,82.775,3.72641842]
[1771599251432,3.42374812,82.849,82.775,3.72641842]
[1771599251736,3.42374812,82.849,82.75,5.98855444]
[1771599251737,3.42374812,82.849,82.782,3.72641842]
[1771599252342,10.8679,82.837,82.782,3.72641842]
[1771599253238,10.8668,82.846,82.784,3.72641842]
[1771599253439,3.42374812,82.849,82.784,3.72641842]
[1771599253742,10.8667,82.847,82.796,10.8733]
[1771599253938,9.33573073,82.87,82.796,3.72641842]
[1771599254143,3.34717629,82.869,82.796,3.72641842]
[1771599254541,3.34746769,82.849,82.771,3.72641842]
[1771599255440,3.34746769,82.849,82.75,67.98855444]
[1771599255441,3.34746769,82.849,82.801,10.8726]
[1771599256937,10.8666,82.848,82.801,10.8726]
[1771599257345,10.8666,82.848,82.793,3.72641842]
[1771599257346,3.34746769,82.849,82.793,3.72641842]
[1771599257544,3.35305101,82.829,82.774,3.72641842]
[1771599257945,10.8695,82.825,82.774,3.72641842]
[1771599258446,3.35305101,82.829,82.751,3.72641842]
[1771599259239,3.35305101,82.829,82.769,10.8767]
[1771599259649,3.35305101,82.829,82.751,3.72641842]
[1771599260444,3.24412608,82.819,82.751,3.72641842]
[1771599260948,10.8729,82.8,82.751,3.72641842]
[1771599261148,3.24412608,82.799,82.711,3.72641842]
[1771599261752,3.24412608,82.799,82.745,3.72641842]
[1771599262048,5.98855444,82.81,82.745,3.72641842]
[1771599262243,3.17533153,82.809,82.745,3.72641842]
[1771599262449,3.17533153,82.809,82.711,3.72641842]
[1771599263045,10.8747,82.786,82.739,10.8808]
[1771599263350,3.17533153,82.789,82.73,3.72641842]
[1771599263845,10.8756,82.779,82.73,3.72641842]
[1771599264451,10.8766,82.772,82.73,3.72641842]
[1771599264648,3.17533153,82.789,82.714,10.884]
[1771599265041,5.98855444,82.79,82.714,10.884]
[1771599265042,3.17406122,82.764,82.714,10.884]
[1771599265244,3.17406122,82.764,82.695,3.72641842]
[1771599265453,3.17406122,82.749,82.671,3.72641842]
[1771599266046,3.17406122,82.749,82.682,10.8883]
[1771599266047,10.8813,82.736,82.682,10.8883]
[1771599266647,10.8799,82.746,82.692,3.72641842]
[1771599267154,3.13318681,82.766,82.692,3.72641842]
[1771599268155,3.13318681,82.766,82.709,3.72641842]
[1771599268347,5.98855444,82.79,82.709,3.72641842]
[1771599268348,3.17246249,82.789,82.709,3.72641842]
[1771599268749,10.8769,82.769,82.709,3.72641842]
[1771599268954,3.17246249,82.789,82.709,3.72641842]
[1771599269351,14.04666249,82.789,82.731,3.72641842]
[1771599270160,10.8728,82.801,82.741,3.72641842]
[1771599270658,5.98855444,82.81,82.741,3.72641842]
[1771599270854,5.98855444,82.83,82.751,3.72641842]
[1771599271456,10.8678,82.838,82.775,3.72641842]
[1771599271963,3.21791175,82.843,82.787,10.8744]
[1771599272159,3.21791175,82.843,82.775,3.72641842]
[1771599272353,5.98855444,82.85,82.775,3.72641842]
[1771599272560,14.07926909,82.861,82.803,10.8723]
[1771599272860,3.21436909,82.849,82.771,3.72641842]
[1771599273555,10.8676,82.84,82.781,10.8752]
[1771599273757,10.8676,82.84,82.771,3.72641842]
[1771599273955,3.21436909,82.839,82.771,3.72641842]
[1771599274155,3.21436909,82.839,82.78,10.8754]
[1771599275459,5.98855444,82.85,82.771,3.72641842]
[1771599275661,3.21194741,82.849,82.771,3.72641842]
[1771599276061,10.8684,82.834,82.78,10.8754]
[1771599276273,3.20537629,82.833,82.771,3.72641842]
[1771599277065,5.98855444,82.85,82.771,3.72641842]
[1771599277066,3.20537629,82.829,82.771,3.72641842]
[1771599277665,10.8696,82.825,82.771,3.72641842]
[1771599278467,3.20537629,82.829,82.771,3.72641842]
[1771599279064,14.07758885,82.82,82.761,10.8779]
[1771599279660,3.20738885,82.817,82.761,10.8779]
[1771599279872,5.98855444,82.82,82.77,3.71401517]
[1771599280166,3.20738885,82.836,82.77,3.71401517]
[1771599280361,10.8694,82.827,82.77,3.71401517]
[1771599280557,3.20976792,82.826,82.77,3.71401517]
[1771599280960,3.20976792,82.819,82.731,3.71401517]
[1771599281362,3.20976792,82.817,82.76,10.8779]
[1771599281568,3.20976792,82.817,82.748,3.71401517]
[1771599282464,10.8708,82.816,82.748,3.71401517]